[Event "Titled Tuesday Blitz March 14 Early 2023"]
[White "Molina, Roberto Junio Brito"]
[Black "Wartiovaara, Oliver"]
[WhiteFideId "2109450"]
[BlackFideId "513024"]
[WhiteElo "2376"]
[BlackElo "2214"]
[Result "0-1"]
[Round "11"]
[TimeControl "180+2"]
[Date "2023.03.14"]
[WhiteClock "0:00:11"]
[BlackClock "0:00:06"]

1. d4 {[%clk 0:03:00]}  Nf6 {[%clk 0:02:57]} 2. c4 {[%clk 0:02:58]}  e6 {[%clk 0:02:53]} 3. Nf3 {[%clk 0:02:58]}  c5 {[%clk 0:02:53]} 4. d5 {[%clk 0:02:58]}  d6 {[%clk 0:02:52]} 5. Nc3 {[%clk 0:02:57]}  exd5 {[%clk 0:02:51]} 6. cxd5 {[%clk 0:02:58]}  g6 {[%clk 0:02:52]} 7. e4 {[%clk 0:02:57]}  a6 {[%clk 0:02:50]} 8. h3 {[%clk 0:02:56]}  b5 {[%clk 0:02:48]} 9. Bd3 {[%clk 0:02:56]}  Bg7 {[%clk 0:02:46]} 10. O-O {[%clk 0:02:56]}  O-O {[%clk 0:02:46]} 11. Re1 {[%clk 0:02:56]}  Nbd7 {[%clk 0:02:45]} 12. Bf4 {[%clk 0:02:55]}  Qb6 {[%clk 0:02:42]} 13. Qd2 {[%clk 0:02:55]}  Re8 {[%clk 0:02:40]} 14. Rad1 {[%clk 0:02:52]}  Bb7 {[%clk 0:02:39]} 15. a3 {[%clk 0:02:47]}  c4 {[%clk 0:02:27]} 16. Bc2 {[%clk 0:02:45]}  Nc5 {[%clk 0:02:27]} 17. Be3 {[%clk 0:02:43]}  Nfd7 {[%clk 0:02:21]} 18. Bd4 {[%clk 0:02:42]}  Bxd4 {[%clk 0:02:20]} 19. Nxd4 {[%clk 0:02:42]}  Ne5 {[%clk 0:02:17]} 20. Re3 {[%clk 0:02:28]}  Ncd3 {[%clk 0:02:11]} 21. Bxd3 {[%clk 0:02:28]}  Nxd3 {[%clk 0:01:47]} 22. Nde2 {[%clk 0:02:17]}  Nc5 {[%clk 0:01:44]} 23. Kh2 {[%clk 0:02:14]}  Nb3 {[%clk 0:01:44]} 24. Qc2 {[%clk 0:02:11]}  Re7 {[%clk 0:01:39]} 25. Rf3 {[%clk 0:01:59]}  Rae8 {[%clk 0:01:37]} 26. Rf4 {[%clk 0:01:59]}  Bc8 {[%clk 0:01:31]} 27. Ng3 {[%clk 0:01:57]}  Kg7 {[%clk 0:01:19]} 28. Nce2 {[%clk 0:01:48]}  Re5 {[%clk 0:01:14]} 29. Qc3 {[%clk 0:01:44]}  Qd8 {[%clk 0:01:13]} 30. Nd4 {[%clk 0:01:43]}  Bd7 {[%clk 0:01:11]} 31. Nxb3 {[%clk 0:01:35]}  cxb3 {[%clk 0:01:11]} 32. Qxb3 {[%clk 0:01:36]}  Qg5 {[%clk 0:01:08]} 33. Rf3 {[%clk 0:01:33]}  h5 {[%clk 0:01:08]} 34. Qc3 {[%clk 0:01:24]}  h4 {[%clk 0:01:05]} 35. Nf1 {[%clk 0:01:23]}  Rc8 {[%clk 0:01:04]} 36. Qe3 {[%clk 0:01:16]}  Qxe3 {[%clk 0:00:51]} 37. Rxe3 {[%clk 0:01:15]}  Rc4 {[%clk 0:00:46]} 38. Rde1 {[%clk 0:01:10]}  Rc2 {[%clk 0:00:43]} 39. R3e2 {[%clk 0:01:08]}  Rxe2 {[%clk 0:00:32]} 40. Rxe2 {[%clk 0:01:09]}  b4 {[%clk 0:00:32]} 41. Nd2 {[%clk 0:01:04]}  Bb5 {[%clk 0:00:32]} 42. Re3 {[%clk 0:01:03]}  bxa3 {[%clk 0:00:32]} 43. Rxa3 {[%clk 0:00:57]}  f5 {[%clk 0:00:32]} 44. f3 {[%clk 0:00:53]}  Re7 {[%clk 0:00:28]} 45. Rc3 {[%clk 0:00:52]}  Rb7 {[%clk 0:00:27]} 46. b3 {[%clk 0:00:53]}  Kf6 {[%clk 0:00:26]} 47. f4 {[%clk 0:00:51]}  Re7 {[%clk 0:00:20]} 48. g4 {[%clk 0:00:43]}  hxg3+ {[%clk 0:00:19]} 49. Kxg3 {[%clk 0:00:43]}  fxe4 {[%clk 0:00:19]} 50. Re3 {[%clk 0:00:43]}  Kf5 {[%clk 0:00:19]} 51. Nf3 {[%clk 0:00:37]}  Bd3 {[%clk 0:00:17]} 52. Nd4+ {[%clk 0:00:36]}  Kf6 {[%clk 0:00:17]} 53. Nc6 {[%clk 0:00:34]}  Rb7 {[%clk 0:00:17]} 54. b4 {[%clk 0:00:34]}  Rb5 {[%clk 0:00:16]} 55. Re1 {[%clk 0:00:21]}  Rxd5 {[%clk 0:00:14]} 56. Kf2 {[%clk 0:00:19]}  Bb5 {[%clk 0:00:13]} 57. Na5 {[%clk 0:00:15]}  Rd2+ {[%clk 0:00:13]} 58. Ke3 {[%clk 0:00:16]}  Rd3+ {[%clk 0:00:12]} 59. Kf2 {[%clk 0:00:12]}  d5 {[%clk 0:00:10]} 60. Rc1 {[%clk 0:00:12]}  Kf5 {[%clk 0:00:07]} 61. Rc5 {[%clk 0:00:11]}  Kxf4 {[%clk 0:00:07]} 62. Nb7 {[%clk 0:00:11]}  Rd2+ {[%clk 0:00:07]} 63. Ke1 {[%clk 0:00:11]}  Re2+ {[%clk 0:00:07]} 64. Kd1 {[%clk 0:00:11]}  Rb2 {[%clk 0:00:06]} 65. Rxd5 {[%clk 0:00:11]}  e3 {[%clk 0:00:06]} 0-1


[Site "https://www.chess.com"]

[Event "Titled Tuesday Blitz March 14 Early 2023"]
[White "Degenbaev, Aziz"]
[Black "Fiorito, Francisco"]
[WhiteFideId "13802640"]
[BlackFideId "180165"]
[WhiteElo "2152"]
[BlackElo "2341"]
[Result "0-1"]
[Round "11"]
[TimeControl "180+2"]
[Date "2023.03.14"]
[WhiteClock "0:00:02"]
[BlackClock "0:00:09"]

1. e4 {[%clk 0:03:00]}  c5 {[%clk 0:02:59]} 2. Nf3 {[%clk 0:03:01]}  Nc6 {[%clk 0:02:59]} 3. Bb5 {[%clk 0:03:01]}  g6 {[%clk 0:02:58]} 4. O-O {[%clk 0:03:01]}  Bg7 {[%clk 0:02:58]} 5. c3 {[%clk 0:03:02]}  Nf6 {[%clk 0:02:57]} 6. Re1 {[%clk 0:03:01]}  O-O {[%clk 0:02:56]} 7. h3 {[%clk 0:03:02]}  Qb6 {[%clk 0:02:51]} 8. Bf1 {[%clk 0:02:56]}  d6 {[%clk 0:02:45]} 9. d4 {[%clk 0:02:56]}  cxd4 {[%clk 0:02:44]} 10. cxd4 {[%clk 0:02:57]}  Nd7 {[%clk 0:02:42]} 11. d5 {[%clk 0:02:19]}  Nd4 {[%clk 0:02:34]} 12. Nc3 {[%clk 0:02:18]}  Nxf3+ {[%clk 0:02:32]} 13. Qxf3 {[%clk 0:02:19]}  Ne5 {[%clk 0:02:32]} 14. Qg3 {[%clk 0:02:18]}  Qd8 {[%clk 0:02:14]} 15. Be3 {[%clk 0:02:10]}  a6 {[%clk 0:02:10]} 16. Kh1 {[%clk 0:02:02]}  b5 {[%clk 0:02:09]} 17. Bd4 {[%clk 0:02:01]}  Bh8 {[%clk 0:01:44]} 18. f4 {[%clk 0:01:58]}  Nf3 {[%clk 0:01:44]} 19. Qxf3 {[%clk 0:01:15]}  Bxd4 {[%clk 0:01:42]} 20. Rad1 {[%clk 0:01:16]}  Bg7 {[%clk 0:01:42]} 21. e5 {[%clk 0:01:16]}  Bb7 {[%clk 0:01:40]} 22. Ne4 {[%clk 0:01:02]}  dxe5 {[%clk 0:01:35]} 23. Nc5 {[%clk 0:01:02]}  Qc7 {[%clk 0:00:43]} 24. Nxb7 {[%clk 0:00:58]}  Qxb7 {[%clk 0:00:44]} 25. fxe5 {[%clk 0:00:58]}  Rfd8 {[%clk 0:00:44]} 26. b3 {[%clk 0:00:50]}  Rac8 {[%clk 0:00:43]} 27. Qg4 {[%clk 0:00:29]}  Rc5 {[%clk 0:00:33]} 28. d6 {[%clk 0:00:20]}  Rxe5 {[%clk 0:00:18]} 29. dxe7 {[%clk 0:00:19]}  Qxe7 {[%clk 0:00:19]} 30. Rxd8+ {[%clk 0:00:17]}  Qxd8 {[%clk 0:00:19]} 31. Rd1 {[%clk 0:00:07]}  Rd5 {[%clk 0:00:19]} 32. Rc1 {[%clk 0:00:06]}  Bf8 {[%clk 0:00:19]} 33. Rc8 {[%clk 0:00:05]}  Qf6 {[%clk 0:00:19]} 34. Be2 {[%clk 0:00:05]}  h5 {[%clk 0:00:17]} 35. Qf3 {[%clk 0:00:03]}  Qa1+ {[%clk 0:00:16]} 36. Kh2 {[%clk 0:00:04]}  Qe5+ {[%clk 0:00:16]} 37. Kh1 {[%clk 0:00:03]}  Rd6 {[%clk 0:00:12]} 38. Ra8 {[%clk 0:00:01]}  Rf6 {[%clk 0:00:11]} 39. Qd3 {[%clk 0:00:02]}  Qa1+ {[%clk 0:00:09]} 40. Kh2 {[%clk 0:00:02]}  Kg7 {[%clk 0:00:10]} 41. Bf3 {[%clk 0:00:02]}  Bd6+ {[%clk 0:00:10]} 42. g3 {[%clk 0:00:02]}  Qxa2+ {[%clk 0:00:10]} 43. Bg2 {[%clk 0:00:02]}  Qf2 {[%clk 0:00:09]} 44. Qd5 {[%clk 0:00:02]}  Qxg3+ {[%clk 0:00:08]} 45. Kg1 {[%clk 0:00:02]}  Qh2# {[%clk 0:00:09]} 0-1


[Site "https://www.chess.com"]

[Event "Titled Tuesday Blitz March 14 Early 2023"]
[White "Filgueira, Hernan"]
[Black "Rodchenkov, Sergey D."]
[WhiteFideId "101770"]
[BlackFideId "4168712"]
[WhiteElo "2363"]
[BlackElo "2277"]
[Result "1-0"]
[Round "11"]
[TimeControl "180+2"]
[Date "2023.03.14"]
[WhiteClock "0:00:21"]
[BlackClock "0:00:02"]

1. c4 {[%clk 0:02:58]}  e5 {[%clk 0:02:59]} 2. Nc3 {[%clk 0:02:58]}  Nf6 {[%clk 0:03:00]} 3. Nf3 {[%clk 0:02:57]}  Nc6 {[%clk 0:03:00]} 4. a3 {[%clk 0:02:57]}  g6 {[%clk 0:02:56]} 5. d3 {[%clk 0:02:54]}  Bg7 {[%clk 0:02:56]} 6. g3 {[%clk 0:02:55]}  O-O {[%clk 0:02:55]} 7. Bg2 {[%clk 0:02:55]}  d6 {[%clk 0:02:54]} 8. O-O {[%clk 0:02:54]}  h6 {[%clk 0:02:54]} 9. Rb1 {[%clk 0:02:52]}  Nh5 {[%clk 0:02:51]} 10. b4 {[%clk 0:02:35]}  f5 {[%clk 0:02:51]} 11. b5 {[%clk 0:02:32]}  Ne7 {[%clk 0:02:51]} 12. Qb3 {[%clk 0:02:26]}  Kh8 {[%clk 0:02:37]} 13. Nd2 {[%clk 0:02:22]}  g5 {[%clk 0:02:30]} 14. Nd5 {[%clk 0:02:20]}  g4 {[%clk 0:02:17]} 15. a4 {[%clk 0:02:16]}  f4 {[%clk 0:02:13]} 16. Nxe7 {[%clk 0:02:12]}  Qxe7 {[%clk 0:02:14]} 17. Ba3 {[%clk 0:02:12]}  Qg5 {[%clk 0:02:04]} 18. c5 {[%clk 0:02:08]}  f3 {[%clk 0:01:57]} 19. exf3 {[%clk 0:01:35]}  Qxd2 {[%clk 0:01:56]} 20. fxg4 {[%clk 0:01:35]}  Bxg4 {[%clk 0:01:53]} 21. Bc1 {[%clk 0:01:24]}  Qa5 {[%clk 0:01:27]} 22. Rb2 {[%clk 0:01:12]}  dxc5 {[%clk 0:01:26]} 23. Bxb7 {[%clk 0:01:11]}  Rab8 {[%clk 0:01:23]} 24. Bg2 {[%clk 0:01:08]}  Qb6 {[%clk 0:01:18]} 25. Be3 {[%clk 0:01:06]}  e4 {[%clk 0:00:59]} 26. Rc2 {[%clk 0:01:05]}  Bf3 {[%clk 0:00:54]} 27. dxe4 {[%clk 0:01:02]}  Bxg2 {[%clk 0:00:52]} 28. Kxg2 {[%clk 0:01:03]}  Qf6 {[%clk 0:00:52]} 29. Rxc5 {[%clk 0:00:58]}  Qg6 {[%clk 0:00:36]} 30. Rxc7 {[%clk 0:00:50]}  Rbe8 {[%clk 0:00:32]} 31. Rxa7 {[%clk 0:00:39]}  Qxe4+ {[%clk 0:00:31]} 32. Kg1 {[%clk 0:00:40]}  Qg6 {[%clk 0:00:28]} 33. b6 {[%clk 0:00:34]}  Be5 {[%clk 0:00:18]} 34. Bc5 {[%clk 0:00:26]}  Rg8 {[%clk 0:00:10]} 35. Qf7 {[%clk 0:00:24]}  Qd3 {[%clk 0:00:02]} 36. Qxh5 {[%clk 0:00:21]} 1-0


[Site "https://www.chess.com"]

[Event "Titled Tuesday Blitz March 14 Early 2023"]
[White "Rosen, Eric"]
[Black "Horak, Martin"]
[WhiteFideId "2032562"]
[BlackFideId "367095"]
[WhiteElo "2331"]
[BlackElo "2091"]
[Result "1/2-1/2"]
[Round "11"]
[TimeControl "180+2"]
[Date "2023.03.14"]
[WhiteClock "0:00:02"]
[BlackClock "0:00:05"]

1. e4 {[%clk 0:03:00]}  e5 {[%clk 0:02:59]} 2. Nf3 {[%clk 0:03:01]}  Nc6 {[%clk 0:02:59]} 3. c3 {[%clk 0:03:00]}  Nf6 {[%clk 0:02:54]} 4. d4 {[%clk 0:03:00]}  exd4 {[%clk 0:02:48]} 5. e5 {[%clk 0:03:00]}  Ne4 {[%clk 0:02:06]} 6. Qe2 {[%clk 0:03:00]}  Nc5 {[%clk 0:02:06]} 7. cxd4 {[%clk 0:03:00]}  Na6 {[%clk 0:02:07]} 8. d5 {[%clk 0:02:47]}  Bb4+ {[%clk 0:02:02]} 9. Nc3 {[%clk 0:02:28]}  Ne7 {[%clk 0:01:58]} 10. Bg5 {[%clk 0:01:54]}  h6 {[%clk 0:01:52]} 11. Bh4 {[%clk 0:01:37]}  g5 {[%clk 0:01:45]} 12. Nxg5 {[%clk 0:01:29]}  hxg5 {[%clk 0:01:37]} 13. Bxg5 {[%clk 0:01:29]}  d6 {[%clk 0:01:25]} 14. O-O-O {[%clk 0:00:41]}  Bxc3 {[%clk 0:01:20]} 15. bxc3 {[%clk 0:00:41]}  Bf5 {[%clk 0:01:08]} 16. g4 {[%clk 0:00:38]}  Bg6 {[%clk 0:01:02]} 17. f4 {[%clk 0:00:38]}  Qd7 {[%clk 0:00:58]} 18. f5 {[%clk 0:00:34]}  O-O-O {[%clk 0:00:41]} 19. e6 {[%clk 0:00:29]}  fxe6 {[%clk 0:00:38]} 20. dxe6 {[%clk 0:00:29]}  Qc6 {[%clk 0:00:33]} 21. Bxe7 {[%clk 0:00:24]}  Qxh1 {[%clk 0:00:18]} 22. Bg2 {[%clk 0:00:23]}  Qxh2 {[%clk 0:00:17]} 23. Bxd8 {[%clk 0:00:18]}  Qf4+ {[%clk 0:00:17]} 24. Kb2 {[%clk 0:00:15]}  Nc5 {[%clk 0:00:12]} 25. Bf6 {[%clk 0:00:08]}  Rh2 {[%clk 0:00:12]} 26. fxg6 {[%clk 0:00:05]}  Na4+ {[%clk 0:00:11]} 27. Ka1 {[%clk 0:00:04]}  Qxf6 {[%clk 0:00:10]} 28. e7 {[%clk 0:00:05]}  Qxc3+ {[%clk 0:00:10]} 29. Kb1 {[%clk 0:00:05]}  Qb4+ {[%clk 0:00:08]} 30. Ka1 {[%clk 0:00:03]}  Qc3+ {[%clk 0:00:08]} 31. Kb1 {[%clk 0:00:04]}  Qb4+ {[%clk 0:00:08]} 32. Kc1 {[%clk 0:00:02]}  Qa3+ {[%clk 0:00:05]} 33. Kb1 {[%clk 0:00:02]}  Qb4+ {[%clk 0:00:05]} 1/2-1/2


[Site "https://www.chess.com"]

[Event "Titled Tuesday Blitz March 14 Early 2023"]
[White "Jovic, Stanoje"]
[Black "Nurmanova, Alua"]
[WhiteFideId "905020"]
[BlackFideId "13729390"]
[WhiteElo "2236"]
[BlackElo "2253"]
[Result "1-0"]
[Round "11"]
[TimeControl "180+2"]
[Date "2023.03.14"]
[WhiteClock "0:00:33"]
[BlackClock "0:00:05"]

1. c4 {[%clk 0:03:00]}  Nf6 {[%clk 0:02:59]} 2. g3 {[%clk 0:03:01]}  e5 {[%clk 0:02:57]} 3. Bg2 {[%clk 0:03:00]}  g6 {[%clk 0:02:58]} 4. Nf3 {[%clk 0:02:59]}  Nc6 {[%clk 0:02:55]} 5. d4 {[%clk 0:02:58]}  exd4 {[%clk 0:02:52]} 6. Nxd4 {[%clk 0:02:58]}  Bg7 {[%clk 0:02:53]} 7. Nxc6 {[%clk 0:02:58]}  bxc6 {[%clk 0:02:52]} 8. O-O {[%clk 0:02:58]}  O-O {[%clk 0:02:52]} 9. Qa4 {[%clk 0:02:58]}  Re8 {[%clk 0:02:47]} 10. Nc3 {[%clk 0:02:57]}  Ng4 {[%clk 0:02:39]} 11. h3 {[%clk 0:02:50]}  Nh6 {[%clk 0:02:33]} 12. Rd1 {[%clk 0:02:45]}  Qe7 {[%clk 0:02:33]} 13. Bf4 {[%clk 0:02:40]}  Rb8 {[%clk 0:02:09]} 14. Rab1 {[%clk 0:02:21]}  Rb4 {[%clk 0:01:57]} 15. Qxa7 {[%clk 0:02:18]}  Rxc4 {[%clk 0:01:50]} 16. Qxc7 {[%clk 0:02:11]}  Nf5 {[%clk 0:01:45]} 17. a4 {[%clk 0:02:03]}  g5 {[%clk 0:01:45]} 18. Bd2 {[%clk 0:01:50]}  Qc5 {[%clk 0:01:42]} 19. b4 {[%clk 0:01:40]}  Qe7 {[%clk 0:01:33]} 20. Rdc1 {[%clk 0:01:29]}  Be5 {[%clk 0:01:20]} 21. Qa7 {[%clk 0:01:17]}  Bd4 {[%clk 0:01:18]} 22. Qc7 {[%clk 0:01:13]}  Qf6 {[%clk 0:01:12]} 23. Ne4 {[%clk 0:01:07]}  Rxe4 {[%clk 0:01:08]} 24. Bxe4 {[%clk 0:00:53]}  Rxc1+ {[%clk 0:01:02]} 25. Rxc1 {[%clk 0:00:50]}  Nd6 {[%clk 0:01:00]} 26. e3 {[%clk 0:00:43]}  Nxe4 {[%clk 0:00:55]} 27. Qxc8+ {[%clk 0:00:42]}  Kg7 {[%clk 0:00:56]} 28. Be1 {[%clk 0:00:42]}  Bb2 {[%clk 0:00:50]} 29. Rc2 {[%clk 0:00:40]}  Be5 {[%clk 0:00:20]} 30. Qxd7 {[%clk 0:00:38]}  Qf3 {[%clk 0:00:20]} 31. Qg4 {[%clk 0:00:33]}  Qxg4 {[%clk 0:00:05]} 32. hxg4 {[%clk 0:00:33]} 1-0


[Site "https://www.chess.com"]

[Event "Titled Tuesday Blitz March 14 Early 2023"]
[White "Domingo Nunez, Alejandro"]
[Black "Shubenkova, Veronika"]
[WhiteFideId "22245561"]
[BlackFideId "44124040"]
[WhiteElo "2230"]
[BlackElo "2027"]
[Result "1-0"]
[Round "11"]
[TimeControl "180+2"]
[Date "2023.03.14"]
[WhiteClock "0:02:15"]
[BlackClock "0:02:12"]

1. e4 {[%clk 0:03:00]}  e6 {[%clk 0:03:00]} 2. Nf3 {[%clk 0:02:59]}  d5 {[%clk 0:03:00]} 3. Nc3 {[%clk 0:03:00]}  Nf6 {[%clk 0:03:00]} 4. e5 {[%clk 0:03:00]}  Nfd7 {[%clk 0:03:00]} 5. d4 {[%clk 0:03:00]}  c5 {[%clk 0:03:01]} 6. dxc5 {[%clk 0:03:01]}  Bxc5 {[%clk 0:03:00]} 7. Bd3 {[%clk 0:03:00]}  a6 {[%clk 0:03:01]} 8. Bf4 {[%clk 0:03:00]}  b5 {[%clk 0:03:00]} 9. a3 {[%clk 0:03:00]}  Nc6 {[%clk 0:03:00]} 10. h4 {[%clk 0:03:00]}  Qb6 {[%clk 0:03:00]} 11. Qe2 {[%clk 0:02:55]}  Bb7 {[%clk 0:03:01]} 12. h5 {[%clk 0:02:49]}  h6 {[%clk 0:03:01]} 13. O-O {[%clk 0:02:50]}  Rc8 {[%clk 0:02:50]} 14. Rae1 {[%clk 0:02:50]}  Nd4 {[%clk 0:02:45]} 15. Nxd4 {[%clk 0:02:48]}  Bxd4 {[%clk 0:02:46]} 16. Qg4 {[%clk 0:02:48]}  Bxc3 {[%clk 0:02:39]} 17. bxc3 {[%clk 0:02:40]}  Kf8 {[%clk 0:02:34]} 18. Re3 {[%clk 0:02:40]}  f5 {[%clk 0:02:20]} 19. exf6 {[%clk 0:02:21]}  Nxf6 {[%clk 0:02:20]} 20. Qxe6 {[%clk 0:02:20]}  Qxe6 {[%clk 0:02:19]} 21. Rxe6 {[%clk 0:02:21]}  Rxc3 {[%clk 0:02:19]} 22. Bd6+ {[%clk 0:02:18]}  Kf7 {[%clk 0:02:17]} 23. Re7+ {[%clk 0:02:17]}  Kg8 {[%clk 0:02:12]} 24. Rxb7 {[%clk 0:02:15]} 1-0


[Site "https://www.chess.com"]

[Event "Titled Tuesday Blitz March 14 Early 2023"]
[White "Staudenhocker43"]
[Black "Yurovskykh, Oleksandr"]
[BlackFideId "14134020"]
[WhiteElo "2439"]
[BlackElo "2268"]
[Result "1/2-1/2"]
[Round "11"]
[TimeControl "180+2"]
[Date "2023.03.14"]
[WhiteClock "0:00:57"]
[BlackClock "0:01:52"]

1. c4 {[%clk 0:03:00]}  c6 {[%clk 0:03:00]} 2. d4 {[%clk 0:02:59]}  d5 {[%clk 0:03:01]} 3. Nf3 {[%clk 0:02:59]}  Nf6 {[%clk 0:03:01]} 4. Nc3 {[%clk 0:02:59]}  e6 {[%clk 0:03:02]} 5. Bg5 {[%clk 0:02:59]}  Be7 {[%clk 0:03:02]} 6. e3 {[%clk 0:02:59]}  O-O {[%clk 0:03:03]} 7. Bd3 {[%clk 0:02:59]}  Nbd7 {[%clk 0:03:02]} 8. O-O {[%clk 0:02:58]}  dxc4 {[%clk 0:03:02]} 9. Bxc4 {[%clk 0:02:58]}  Nd5 {[%clk 0:03:03]} 10. Bxe7 {[%clk 0:02:58]}  Qxe7 {[%clk 0:03:03]} 11. Rc1 {[%clk 0:02:57]}  Nxc3 {[%clk 0:03:02]} 12. Rxc3 {[%clk 0:02:58]}  e5 {[%clk 0:03:03]} 13. dxe5 {[%clk 0:02:52]}  Nxe5 {[%clk 0:03:03]} 14. Nxe5 {[%clk 0:02:53]}  Qxe5 {[%clk 0:03:03]} 15. h3 {[%clk 0:02:46]}  Be6 {[%clk 0:03:01]} 16. Qb3 {[%clk 0:02:43]}  Bxc4 {[%clk 0:02:59]} 17. Rxc4 {[%clk 0:02:44]}  Qc7 {[%clk 0:02:57]} 18. Rd1 {[%clk 0:02:43]}  Rad8 {[%clk 0:02:58]} 19. Rcd4 {[%clk 0:02:43]}  b6 {[%clk 0:02:56]} 20. Qd3 {[%clk 0:02:41]}  Rxd4 {[%clk 0:02:53]} 21. Qxd4 {[%clk 0:02:42]}  g6 {[%clk 0:02:53]} 22. Qd7 {[%clk 0:02:40]}  Rc8 {[%clk 0:02:54]} 23. b3 {[%clk 0:02:33]}  c5 {[%clk 0:02:53]} 24. g4 {[%clk 0:02:15]}  h6 {[%clk 0:02:33]} 25. a4 {[%clk 0:02:11]}  Kg7 {[%clk 0:02:24]} 26. Kg2 {[%clk 0:02:09]}  a6 {[%clk 0:02:07]} 27. Qxc7 {[%clk 0:01:58]}  Rxc7 {[%clk 0:02:08]} 28. Rd6 {[%clk 0:01:58]}  c4 {[%clk 0:02:09]} 29. bxc4 {[%clk 0:01:51]}  Rxc4 {[%clk 0:02:10]} 30. Rxb6 {[%clk 0:01:48]}  Rxa4 {[%clk 0:02:10]} 31. f4 {[%clk 0:01:48]}  Ra1 {[%clk 0:02:08]} 32. e4 {[%clk 0:01:45]}  a5 {[%clk 0:02:07]} 33. Ra6 {[%clk 0:01:44]}  a4 {[%clk 0:02:07]} 34. e5 {[%clk 0:01:44]}  a3 {[%clk 0:02:07]} 35. Ra7 {[%clk 0:01:44]}  Kg8 {[%clk 0:02:07]} 36. Ra8+ {[%clk 0:01:41]}  Kg7 {[%clk 0:02:07]} 37. Ra7 {[%clk 0:01:41]}  Kg8 {[%clk 0:02:07]} 38. f5 {[%clk 0:01:01]}  gxf5 {[%clk 0:02:07]} 39. gxf5 {[%clk 0:01:02]}  Re1 {[%clk 0:02:03]} 40. e6 {[%clk 0:00:57]}  fxe6 {[%clk 0:01:53]} 41. fxe6 {[%clk 0:00:58]}  Rxe6 {[%clk 0:01:52]} 42. Rxa3 {[%clk 0:00:57]} 1/2-1/2


[Site "https://www.chess.com"]

[Event "Titled Tuesday Blitz March 14 Early 2023"]
[White "Fiorito, Joaquin"]
[Black "Loiacono, Antonio"]
[WhiteFideId "180173"]
[BlackFideId "895415"]
[WhiteElo "2157"]
[BlackElo "2257"]
[Result "0-1"]
[Round "11"]
[TimeControl "180+2"]
[Date "2023.03.14"]
[WhiteClock "0:00:06"]
[BlackClock "0:00:22"]

1. d4 {[%clk 0:03:00]}  Nf6 {[%clk 0:02:58]} 2. Nc3 {[%clk 0:03:01]}  d5 {[%clk 0:02:58]} 3. Bf4 {[%clk 0:03:01]}  c6 {[%clk 0:02:58]} 4. e3 {[%clk 0:03:01]}  Bf5 {[%clk 0:02:59]} 5. Nf3 {[%clk 0:03:02]}  h6 {[%clk 0:02:57]} 6. Ne5 {[%clk 0:03:02]}  e6 {[%clk 0:02:55]} 7. g4 {[%clk 0:03:02]}  Bh7 {[%clk 0:02:54]} 8. h4 {[%clk 0:03:02]}  Nbd7 {[%clk 0:02:53]} 9. g5 {[%clk 0:02:51]}  Nxe5 {[%clk 0:02:34]} 10. gxf6 {[%clk 0:02:23]}  Ng6 {[%clk 0:02:22]} 11. fxg7 {[%clk 0:02:20]}  Bxg7 {[%clk 0:02:23]} 12. Bg3 {[%clk 0:02:17]}  Bf6 {[%clk 0:02:23]} 13. h5 {[%clk 0:02:11]}  Ne7 {[%clk 0:02:23]} 14. Qd2 {[%clk 0:02:12]}  Nf5 {[%clk 0:02:17]} 15. Bf4 {[%clk 0:02:10]}  Qe7 {[%clk 0:02:09]} 16. O-O-O {[%clk 0:02:00]}  O-O-O {[%clk 0:02:08]} 17. Nb5 {[%clk 0:01:12]}  e5 {[%clk 0:01:47]} 18. dxe5 {[%clk 0:00:29]}  Bxe5 {[%clk 0:01:48]} 19. Bxe5 {[%clk 0:00:18]}  Qxe5 {[%clk 0:01:49]} 20. Nc3 {[%clk 0:00:18]}  Kb8 {[%clk 0:01:40]} 21. Bd3 {[%clk 0:00:17]}  Nd6 {[%clk 0:01:37]} 22. Bxh7 {[%clk 0:00:17]}  Rxh7 {[%clk 0:01:38]} 23. Qd4 {[%clk 0:00:16]}  Qe6 {[%clk 0:01:19]} 24. Rhg1 {[%clk 0:00:16]}  Qf5 {[%clk 0:01:13]} 25. f4 {[%clk 0:00:14]}  Rhh8 {[%clk 0:01:11]} 26. Rh1 {[%clk 0:00:08]}  Rhe8 {[%clk 0:01:11]} 27. Rdg1 {[%clk 0:00:08]}  Ne4 {[%clk 0:01:06]} 28. Nxe4 {[%clk 0:00:07]}  Rxe4 {[%clk 0:01:04]} 29. Qg7 {[%clk 0:00:08]}  Re6 {[%clk 0:01:00]} 30. Rg3 {[%clk 0:00:07]}  Rde8 {[%clk 0:00:58]} 31. Qd4 {[%clk 0:00:06]}  Qe4 {[%clk 0:00:51]} 32. Qxe4 {[%clk 0:00:05]}  Rxe4 {[%clk 0:00:52]} 33. Rhh3 {[%clk 0:00:06]}  d4 {[%clk 0:00:49]} 34. exd4 {[%clk 0:00:06]}  Rxd4 {[%clk 0:00:47]} 35. c3 {[%clk 0:00:03]}  Rxf4 {[%clk 0:00:45]} 36. Kc2 {[%clk 0:00:03]}  Rf2+ {[%clk 0:00:40]} 37. Kb3 {[%clk 0:00:04]}  Ree2 {[%clk 0:00:41]} 38. Rf3 {[%clk 0:00:03]}  Rxb2+ {[%clk 0:00:40]} 39. Kc4 {[%clk 0:00:03]}  Rxa2 {[%clk 0:00:39]} 40. Re3 {[%clk 0:00:02]}  Rae2 {[%clk 0:00:39]} 41. Reg3 {[%clk 0:00:02]}  Kc7 {[%clk 0:00:33]} 42. Rg7 {[%clk 0:00:02]}  Rf5 {[%clk 0:00:30]} 43. Rh7 {[%clk 0:00:02]}  Re6 {[%clk 0:00:30]} 44. Rg3 {[%clk 0:00:02]}  Rxh5 {[%clk 0:00:27]} 45. Rgg7 {[%clk 0:00:02]}  Rf5 {[%clk 0:00:26]} 46. Rxf7+ {[%clk 0:00:02]}  Rxf7 {[%clk 0:00:27]} 47. Rxf7+ {[%clk 0:00:03]}  Kb6 {[%clk 0:00:28]} 48. Rh7 {[%clk 0:00:03]}  Rg6 {[%clk 0:00:28]} 49. Kb4 {[%clk 0:00:04]}  a5+ {[%clk 0:00:28]} 50. Ka4 {[%clk 0:00:04]}  Ka6 {[%clk 0:00:29]} 51. c4 {[%clk 0:00:05]}  b5+ {[%clk 0:00:29]} 52. cxb5+ {[%clk 0:00:06]}  cxb5+ {[%clk 0:00:30]} 53. Kb3 {[%clk 0:00:07]}  a4+ {[%clk 0:00:30]} 54. Kc2 {[%clk 0:00:08]}  Ka5 {[%clk 0:00:30]} 55. Kc3 {[%clk 0:00:08]}  Rc6+ {[%clk 0:00:29]} 56. Kb2 {[%clk 0:00:07]}  Kb4 {[%clk 0:00:29]} 57. Rg7 {[%clk 0:00:08]}  a3+ {[%clk 0:00:30]} 58. Ka1 {[%clk 0:00:07]}  Rc1+ {[%clk 0:00:27]} 59. Ka2 {[%clk 0:00:07]}  Rc2+ {[%clk 0:00:27]} 60. Ka1 {[%clk 0:00:08]}  Ka4 {[%clk 0:00:25]} 61. Ra7+ {[%clk 0:00:08]}  Kb3 {[%clk 0:00:24]} 62. Rc7 {[%clk 0:00:06]}  Rxc7 {[%clk 0:00:22]} 0-1


[Site "https://www.chess.com"]